fUSD/lending_fUSD_20260614
["ID","MTS","AMOUNT","RATE_DAILY","PERIOD"]
[425062864,1781447569000,-500.0,0.0003178,8]
[425062876,1781447569000,-500.0,0.0003178,8]
[425062868,1781447569000,-842.22,0.0003178,8]
[425062869,1781447569000,-500.0,0.0003178,8]
[425062875,1781447569000,-5751.63,0.0003178,8]
[425062872,1781447569000,-643.52800803,0.0003178,8]
[425062870,1781447569000,-1675.9,0.0003178,8]
[425062871,1781447569000,-703.84,0.0003178,8]
[425062873,1781447569000,-500.0,0.0003178,8]
[425062877,1781447569000,-500.0,0.0003178,8]
[425062887,1781447569000,-1116.26,0.0003178,8]
[425062888,1781447569000,-825.79,0.0003178,8]
[425062878,1781447569000,-877.23,0.0003178,8]
[425062889,1781447569000,-500.0,0.0003178,8]
[425062855,1781447569000,-2238.28,0.0003178,8]
[425062865,1781447569000,-1157.66,0.0003178,8]
[425062856,1781447569000,-682.04,0.0003178,8]
[425062839,1781447569000,-698.01,0.0003178,8]
[425062862,1781447569000,-2017.64,0.0003178,8]
[425062880,1781447569000,-1056.35,0.0003178,8]
[425062826,1781447569000,-500.0,0.0003178,8]
[425062825,1781447569000,-870.51,0.0003178,8]
[425062827,1781447569000,-500.0,0.0003178,8]
[425062828,1781447569000,-500.0,0.0003178,8]
[425062829,1781447569000,-692.78,0.0003178,8]
[425062830,1781447569000,-540.29,0.0003178,8]
[425062832,1781447569000,-743.01,0.0003178,8]
[425062831,1781447569000,-1661.43,0.0003178,8]
[425062833,1781447569000,-553.44,0.0003178,8]
[425062836,1781447569000,-569.38456757,0.0003178,8]
[425062835,1781447569000,-509.71,0.0003178,8]
[425062838,1781447569000,-605.61,0.0003178,8]
[425062834,1781447569000,-920.43,0.0003178,8]
[425062837,1781447569000,-662.85,0.0003178,8]
[425062840,1781447569000,-500.0,0.0003178,8]
[425062849,1781447569000,-558.94,0.0003178,8]
[425062850,1781447569000,-500.0,0.0003178,8]
[425062841,1781447569000,-2667.75,0.0003178,8]
[425062846,1781447569000,-484.74782235,0.0003178,8]
[425062848,1781447569000,-1169.04,0.0003178,8]
[425062843,1781447569000,-500.0,0.0003178,8]
[425062842,1781447569000,-500.0,0.0003178,8]
[425062844,1781447569000,-674.5,0.0003178,8]
[425062847,1781447569000,-592.38,0.0003178,8]
[425062845,1781447569000,-1701.25,0.0003178,8]
[425062852,1781447569000,-720.7,0.0003178,8]
[425062851,1781447569000,-605.88,0.0003178,8]
[425062879,1781447569000,-546.64,0.0003178,8]
[425062941,1781447569000,-1214.13,0.0003178,8]
[425062885,1781447569000,-679.83,0.0003178,8]
[425062916,1781447569000,-4001.43,0.0003178,8]
[425062921,1781447569000,-1407.31,0.0003178,8]
[425062920,1781447569000,-1023.6,0.0003178,8]
[425062919,1781447569000,-508.2,0.0003178,8]
[425062922,1781447569000,-387.07525944,0.0003178,8]
[425062918,1781447569000,-1000.0,0.0003178,8]
[425062923,1781447569000,-1278.35,0.0003178,8]
[425062925,1781447569000,-11664.09,0.0003178,8]
[425062927,1781447569000,-500.0,0.0003178,8]
[425062936,1781447569000,-2890.54,0.0003178,8]
[425062924,1781447569000,-500.0,0.0003178,8]
[425062926,1781447569000,-563.46,0.0003178,8]
[425062929,1781447569000,-677.78,0.0003178,8]
[425062928,1781447569000,-25282.9,0.0003178,8]
[425062930,1781447569000,-505.16,0.0003178,8]
[425062934,1781447569000,-1296.71,0.0003178,8]
[425062932,1781447569000,-2026.58,0.0003178,8]
[425062933,1781447569000,-589.03,0.0003178,8]
[425062931,1781447569000,-500.0,0.0003178,8]
[425062937,1781447569000,-1801.16,0.0003178,8]
[425062938,1781447569000,-1828.15,0.0003178,8]
[425062943,1781447569000,-1866.64,0.0003178,8]
[425062939,1781447569000,-1343.56,0.0003178,8]
[425062940,1781447569000,-1463.18,0.0003178,8]
[425062942,1781447569000,-595.31,0.0003178,8]
[425062944,1781447569000,-559.20617742,0.0003178,8]
[425062881,1781447569000,-940.15,0.0003178,8]
[425062913,1781447569000,-636.66,0.0003178,8]
[425062917,1781447569000,-1749.66,0.0003178,8]
[425062935,1781447569000,-557.28,0.0003178,8]
[425062915,1781447569000,-1109.22,0.0003178,8]
[425062882,1781447569000,-411.14095119,0.0003178,8]
[425062914,1781447569000,-540.32,0.0003178,8]
[425062886,1781447569000,-507.97707804,0.0003178,8]
[425062883,1781447569000,-10759.52,0.0003178,8]
[425062890,1781447569000,-626.04,0.0003178,8]
[425062891,1781447569000,-704.65,0.0003178,8]
[425062897,1781447569000,-3026.85,0.0003178,8]
[425062895,1781447569000,-702.05,0.0003178,8]
[425062896,1781447569000,-500.0,0.0003178,8]
[425062894,1781447569000,-4182.59,0.0003178,8]
[425062893,1781447569000,-500.0,0.0003178,8]
[425062892,1781447569000,-1082.98,0.0003178,8]
[425062898,1781447569000,-500.0,0.0003178,8]
[425062900,1781447569000,-2931.64,0.0003178,8]
[425062884,1781447569000,-1143.85,0.0003178,8]
[425062912,1781447569000,-528.7,0.0003178,8]
[425062911,1781447569000,-1282.28,0.0003178,8]
[425062907,1781447569000,-658.84,0.0003178,8]
[425062909,1781447569000,-178.9462565,0.0003178,8]
[425062899,1781447569000,-500.0,0.0003178,8]
[425062908,1781447569000,-1682.54,0.0003178,8]
[425062906,1781447569000,-518.74,0.0003178,8]
[425062905,1781447569000,-500.0,0.0003178,8]
[425062904,1781447569000,-3706.06,0.0003178,8]
[425062903,1781447569000,-528.8,0.0003178,8]
[425062901,1781447569000,-500.0,0.0003178,8]
[425062902,1781447569000,-742.57,0.0003178,8]
[425062910,1781447569000,-610.83,0.0003178,8]
[425062999,1781447570000,-922.21,0.0003178,8]
[425062987,1781447570000,-861.57,0.0003178,8]
[425062979,1781447570000,-500.0,0.0003178,8]
[425062985,1781447570000,-1648.13,0.0003178,8]
[425062981,1781447570000,-1599.83,0.0003178,8]
[425062983,1781447570000,-5289.14,0.0003178,8]
[425062980,1781447570000,-707.22,0.0003178,8]
[425062976,1781447570000,-500.0,0.0003178,8]
[425062977,1781447570000,-1326.3,0.0003178,8]
[425062984,1781447570000,-955.12,0.0003178,8]
[425062986,1781447570000,-577.21,0.0003178,8]
[425062982,1781447570000,-640.65,0.0003178,8]
[425062978,1781447570000,-1057.08,0.0003178,8]
[425062998,1781447570000,-500.0,0.0003178,8]
[425062990,1781447570000,-800.7,0.0003178,8]
[425062989,1781447570000,-500.0,0.0003178,8]
[425062988,1781447570000,-500.0,0.0003178,8]
[425062991,1781447570000,-2104.15,0.0003178,8]
[425062994,1781447570000,-921.05,0.0003178,8]
[425062992,1781447570000,-1609.77,0.0003178,8]
[425062995,1781447570000,-500.0,0.0003178,8]
[425062993,1781447570000,-636.16186793,0.0003178,8]
[425062996,1781447570000,-500.0,0.0003178,8]
[425063001,1781447570000,-837.18,0.0003178,8]
[425063011,1781447570000,-488.97876178,0.00031844,7]
[425063004,1781447570000,-1698.66,0.0003178,8]
[425063008,1781447570000,-1401.83,0.0003178,8]
[425062997,1781447570000,-1133.48,0.0003178,8]
[425062974,1781447570000,-1297.07,0.0003178,8]
[425062948,1781447570000,-5973.16,0.0003178,8]
[425062973,1781447570000,-500.0,0.0003178,8]
[425063010,1781447570000,-862.64,0.0003178,8]
[425062945,1781447570000,-1413.1,0.0003178,8]
[425062947,1781447570000,-500.0,0.0003178,8]
[425062949,1781447570000,-763.45,0.0003178,8]
[425062946,1781447570000,-577.98,0.0003178,8]
[425062950,1781447570000,-1090.91,0.0003178,8]
[425062959,1781447570000,-2020.73,0.0003178,8]
[425062951,1781447570000,-500.0,0.0003178,8]
[425062960,1781447570000,-1129.02,0.0003178,2]
[425062952,1781447570000,-3655.13,0.0003178,8]
[425062954,1781447570000,-2562.95,0.0003178,8]
[425062961,1781447570000,-1357.49,0.0003178,8]
[425062953,1781447570000,-3216.2,0.0003178,8]
[425062975,1781447570000,-649.93,0.0003178,8]
[425062962,1781447570000,-156.94098046,0.0003178,8]
[425062955,1781447570000,-1440.23,0.0003178,8]
[425062956,1781447570000,-500.0,0.0003178,8]
[425062957,1781447570000,-1108.18,0.0003178,8]
[425062963,1781447570000,-878.66,0.0003178,8]
[425062966,1781447570000,-839.66,0.0003178,8]
[425062970,1781447570000,-12728.02,0.0003178,8]
[425062969,1781447570000,-822.75,0.0003178,8]
[425062967,1781447570000,-707.83,0.0003178,8]
[425062968,1781447570000,-900.28,0.0003178,8]
[425062965,1781447570000,-529.83,0.0003178,8]
[425062971,1781447570000,-500.0,0.0003178,8]
[425062972,1781447570000,-2061.13,0.0003178,8]
[425062964,1781447570000,-500.0,0.0003178,8]
[425062958,1781447570000,-605.58,0.0003178,8]
[425063003,1781447570000,-741.37,0.0003178,8]
[425063030,1781447570000,-197.62854156,0.00032,120]
[425063005,1781447570000,-500.0,0.0003178,8]
[425063037,1781447570000,-152.0,0.00032028,30]
[425063040,1781447570000,-168.0,0.00032028,30]
[425063039,1781447570000,-154.0,0.00032028,30]
[425063044,1781447570000,-3189.0,0.00032032,30]
[425063041,1781447570000,-324.0,0.00032028,30]
[425063043,1781447570000,-689.0,0.00032032,30]
[425063042,1781447570000,-284.0,0.00032032,30]
[425063046,1781447570000,-190.0,0.00032032,30]
[425063045,1781447570000,-350.0,0.00032032,30]
[425063047,1781447570000,-400.0,0.0003204,2]
[425063050,1781447570000,-411.74441966,0.0003204,2]
[425063061,1781447570000,-500.0,0.00032054,8]
[425063012,1781447570000,-224412.35740323,0.000319,7]
[425063049,1781447570000,-400.0,0.0003204,2]
[425063052,1781447570000,-667.37624601,0.00032053,8]
[425063062,1781447570000,-1013.37,0.00032054,8]
[425063051,1781447570000,-667.37624602,0.00032053,8]
[425063053,1781447570000,-1928.24,0.00032054,8]
[425063058,1781447570000,-957.59,0.00032054,8]
[425063060,1781447570000,-510.86,0.00032054,8]
[425063056,1781447570000,-1290.4,0.00032054,8]
[425063059,1781447570000,-500.0,0.00032054,8]
[425063057,1781447570000,-706.5,0.00032054,8]
[425063064,1781447570000,-630.1,0.00032054,8]
[425063063,1781447570000,-512.97,0.00032054,8]
[425063065,1781447570000,-558.29,0.00032054,8]
[425063068,1781447570000,-500.0,0.00032054,8]
[425063066,1781447570000,-925.25,0.00032054,8]
[425063054,1781447570000,-2287.07,0.00032054,8]
[425063048,1781447570000,-400.0,0.0003204,2]
[425063055,1781447570000,-569.09,0.00032054,8]
[425063034,1781447570000,-167.0,0.00032021,30]
[425063038,1781447570000,-410.0,0.00032028,30]
[425063000,1781447570000,-268.72966205,0.0003178,8]
[425063009,1781447570000,-1434.77,0.0003178,8]
[425063002,1781447570000,-216.46376844,0.0003178,8]
[425063007,1781447570000,-500.0,0.0003178,8]
[425063006,1781447570000,-5871.97,0.0003178,8]
[425063014,1781447570000,-293035.52126659,0.00032,7]
[425063013,1781447570000,-50000.0,0.00032,6]
[425063016,1781447570000,-467.0,0.00032,5]
[425063017,1781447570000,-501.58,0.00032,10]
[425063020,1781447570000,-188.22238513,0.00032,120]
[425063018,1781447570000,-24743.78282215,0.00032,2]
[425063021,1781447570000,-512.97205329,0.00032,120]
[425063023,1781447570000,-166.27707781,0.00032,120]
[425063015,1781447570000,-10000.0,0.00032,2]
[425063019,1781447570000,-196.85231838,0.00032,120]
[425063022,1781447570000,-331.96218981,0.00032,120]
[425063029,1781447570000,-164.45400775,0.00032,120]
[425063033,1781447570000,-253.79732707,0.00032017,4]
[425063067,1781447570000,-1526.43,0.00032054,8]
[425063032,1781447570000,-700.0,0.00032,2]
[425063035,1781447570000,-233.0,0.00032021,30]
[425063036,1781447570000,-503.0,0.00032028,30]
[425063025,1781447570000,-193.5823682,0.00032,120]
[425063027,1781447570000,-463.01413087,0.00032,120]
[425063028,1781447570000,-164.58473458,0.00032,120]
[425063026,1781447570000,-192.42040012,0.00032,120]
[425063024,1781447570000,-265.31991817,0.00032,120]
[425063031,1781447570000,-324.31386013,0.00032,120]
[425063103,1781447571000,-1121.81,0.00032054,8]
[425063104,1781447571000,-648.16,0.00032054,8]
[425063105,1781447571000,-1031.86,0.00032054,8]
[425063111,1781447571000,-500.0,0.00032054,8]
[425063114,1781447571000,-500.0,0.00032054,8]
[425063106,1781447571000,-800.55,0.00032054,8]
[425063112,1781447571000,-688.19,0.00032054,8]
[425063113,1781447571000,-500.0,0.00032054,8]
[425063102,1781447571000,-524.27,0.00032054,8]
[425063098,1781447571000,-951.06,0.00032054,8]
[425063108,1781447571000,-546.49,0.00032054,8]
[425063107,1781447571000,-682.21,0.00032054,8]
[425063109,1781447571000,-1400.43,0.00032054,8]
[425063128,1781447571000,-500.0,0.00032054,8]
[425063116,1781447571000,-608.15,0.00032054,8]
[425063117,1781447571000,-1189.57,0.00032054,8]
[425063118,1781447571000,-1222.28,0.00032054,8]
[425063115,1781447571000,-500.0,0.00032054,8]
[425063127,1781447571000,-532.02,0.00032054,8]
[425063126,1781447571000,-1281.05,0.00032054,8]
[425063119,1781447571000,-1452.09,0.00032054,8]
[425063121,1781447571000,-529.56009714,0.00032054,8]
[425063125,1781447571000,-631.05129696,0.00032054,8]
[425063122,1781447571000,-672.85,0.00032054,8]
[425063123,1781447571000,-1053.08,0.00032054,8]
[425063124,1781447571000,-500.0,0.00032054,8]
[425063120,1781447571000,-500.0,0.00032054,8]
[425063110,1781447571000,-1274.35,0.00032054,8]
[425063097,1781447571000,-578.78,0.00032054,8]
[425063075,1781447571000,-685.22,0.00032054,8]
[425063095,1781447571000,-514.54,0.00032054,8]
[425063134,1781447571000,-1037.86,0.00032054,8]
[425063074,1781447571000,-500.0,0.00032054,8]
[425063069,1781447571000,-552.72,0.00032054,8]
[425063071,1781447571000,-542.62,0.00032054,8]
[425063072,1781447571000,-431.15758456,0.00032054,8]
[425063073,1781447571000,-500.0,0.00032054,8]
[425063070,1781447571000,-1280.28,0.00032054,8]
[425063076,1781447571000,-614.99,0.00032054,8]
[425063078,1781447571000,-801.17,0.00032054,8]
[425063081,1781447571000,-985.3,0.00032054,8]
[425063082,1781447571000,-1007.63,0.00032054,8]
[425063077,1781447571000,-736.33,0.00032054,8]
[425063079,1781447571000,-1300.69,0.00032054,8]
[425063094,1781447571000,-500.0,0.00032054,8]
[425063080,1781447571000,-1200.69,0.00032054,8]
[425063083,1781447571000,-1573.21,0.00032054,8]
[425063085,1781447571000,-1067.78,0.00032054,8]
[425063088,1781447571000,-700.76,0.00032054,8]
[425063086,1781447571000,-500.0,0.00032054,8]
[425063087,1781447571000,-423.65877723,0.00032054,8]
[425063090,1781447571000,-500.0,0.00032054,8]
[425063100,1781447571000,-735.2,0.00032054,8]
[425063091,1781447571000,-1224.99,0.00032054,8]
[425063089,1781447571000,-500.0,0.00032054,8]
[425063101,1781447571000,-553.9,0.00032054,8]
[425063093,1781447571000,-1285.32,0.00032054,8]
[425063092,1781447571000,-508.34,0.00032054,8]
[425063096,1781447571000,-926.37,0.00032054,8]
[425063084,1781447571000,-738.99,0.00032054,8]
[425063133,1781447571000,-500.0,0.00032054,8]
[425063099,1781447571000,-253.98400751,0.00032054,8]
[425063131,1781447571000,-664.01,0.00032054,8]
[425063166,1781447571000,-556.37,0.00032054,8]
[425063165,1781447571000,-815.68,0.00032054,8]
[425063177,1781447571000,-1022.53,0.00032054,8]
[425063176,1781447571000,-500.0,0.00032054,8]
[425063170,1781447571000,-500.0,0.00032054,8]
[425063168,1781447571000,-534.02,0.00032054,8]
[425063171,1781447571000,-520.69,0.00032054,8]
[425063169,1781447571000,-790.09,0.00032054,8]
[425063172,1781447571000,-500.0,0.00032054,8]
[425063173,1781447571000,-648.3,0.00032054,8]
[425063174,1781447571000,-500.0,0.00032054,8]
[425063175,1781447571000,-500.0,0.00032054,8]
[425063178,1781447571000,-543.72,0.00032054,8]
[425063167,1781447571000,-500.0,0.00032054,8]
[425063185,1781447571000,-500.0,0.00032054,8]
[425063180,1781447571000,-1193.0,0.00032054,8]
[425063187,1781447571000,-723.54,0.00032054,8]
[425063183,1781447571000,-500.0,0.00032054,8]
[425063188,1781447571000,-1746.88,0.00032054,8]
[425063181,1781447571000,-573.76,0.00032054,8]
[425063184,1781447571000,-1254.7,0.00032054,8]
[425063189,1781447571000,-500.0,0.00032054,8]
[425063182,1781447571000,-376.97446422,0.00032054,8]
[425063190,1781447571000,-784.28,0.00032054,8]
[425063191,1781447571000,-872.27,0.00032054,8]
[425063192,1781447571000,-500.0,0.00032054,8]
[425063193,1781447571000,-559.91,0.00032054,8]
[425063132,1781447571000,-1047.49,0.00032054,8]
[425063186,1781447571000,-689.06,0.00032054,8]
[425063159,1781447571000,-544.6,0.00032054,8]
[425063179,1781447571000,-597.42,0.00032054,8]
[425063156,1781447571000,-806.88,0.00032054,8]
[425063160,1781447571000,-2153.84,0.00032054,8]
[425063130,1781447571000,-1015.25,0.00032054,8]
[425063135,1781447571000,-773.85,0.00032054,8]
[425063139,1781447571000,-586.53,0.00032054,8]
[425063136,1781447571000,-1207.41,0.00032054,8]
[425063129,1781447571000,-1604.32,0.00032054,8]
[425063137,1781447571000,-766.55,0.00032054,8]
[425063138,1781447571000,-508.13,0.00032054,8]
[425063151,1781447571000,-554.77,0.00032054,8]
[425063140,1781447571000,-1099.99,0.00032054,8]
[425063142,1781447571000,-500.0,0.00032054,8]
[425063145,1781447571000,-1195.63,0.00032054,8]
[425063147,1781447571000,-1398.15,0.00032054,8]
[425063143,1781447571000,-671.88,0.00032054,8]
[425063146,1781447571000,-520.02,0.00032054,8]
[425063141,1781447571000,-899.88,0.00032054,8]
[425063150,1781447571000,-1132.03,0.00032054,8]
[425063157,1781447571000,-500.0,0.00032054,8]
[425063154,1781447571000,-510.28,0.00032054,8]
[425063163,1781447571000,-500.0,0.00032054,8]
[425063158,1781447571000,-853.99,0.00032054,8]
[425063162,1781447571000,-406.35716656,0.00032054,8]
[425063155,1781447571000,-500.0,0.00032054,8]
[425063161,1781447571000,-866.85,0.00032054,8]
[425063153,1781447571000,-638.31,0.00032054,8]
[425063152,1781447571000,-607.25,0.00032054,8]
[425063149,1781447571000,-500.0,0.00032054,8]
[425063148,1781447571000,-841.95,0.00032054,8]
[425063144,1781447571000,-1425.15,0.00032054,8]
[425063164,1781447571000,-161.02723486,0.00032054,8]
[425063215,1781447572000,-1285.7,0.00032054,8]
[425063212,1781447572000,-1220.66,0.00032054,8]
[425063214,1781447572000,-500.0,0.00032054,8]
[425063213,1781447572000,-1992.83,0.00032054,8]
[425063219,1781447572000,-694.97,0.00032054,8]
[425063218,1781447572000,-577.76,0.00032054,8]
[425063224,1781447572000,-770.14,0.00032054,8]
[425063217,1781447572000,-500.0,0.00032054,8]
[425063221,1781447572000,-681.48,0.00032054,8]
[425063225,1781447572000,-606.2,0.00032054,8]
[425063220,1781447572000,-638.67,0.00032054,8]
[425063226,1781447572000,-648.66,0.00032054,8]
[425063207,1781447572000,-529.52,0.00032054,8]
[425063216,1781447572000,-694.6,0.00032054,8]
[425063210,1781447572000,-611.86,0.00032054,8]
[425063195,1781447572000,-500.0,0.00032054,8]
[425063209,1781447572000,-536.09,0.00032054,8]
[425063222,1781447572000,-1019.53,0.00032054,8]
[425063201,1781447572000,-1046.11,0.00032054,8]
[425063196,1781447572000,-639.31,0.00032054,8]
[425063200,1781447572000,-715.69,0.00032054,8]
[425063198,1781447572000,-504.6,0.00032054,8]
[425063194,1781447572000,-473.63999267,0.00032054,8]
[425063211,1781447572000,-500.0,0.00032054,8]
[425063197,1781447572000,-623.88,0.00032054,8]
[425063202,1781447572000,-892.45,0.00032054,8]
[425063204,1781447572000,-500.0,0.00032054,8]
[425063205,1781447572000,-500.0,0.00032054,8]
[425063203,1781447572000,-566.53,0.00032054,8]
[425063206,1781447572000,-714.38,0.00032054,8]
[425063208,1781447572000,-1199.94,0.00032054,8]
[425063199,1781447572000,-533.2,0.00032054,8]
[425063223,1781447572000,-500.0,0.00032054,8]
[425063230,1781447572000,-1086.15,0.00032054,8]
[425063229,1781447572000,-202.7365804,0.00032054,8]
[425063248,1781447572000,-987.41,0.00032054,8]
[425063250,1781447572000,-500.0,0.00032054,8]
[425063257,1781447572000,-519.48,0.00032054,8]
[425063251,1781447572000,-747.07,0.00032054,8]
[425063253,1781447572000,-579.71,0.00032054,8]
[425063252,1781447572000,-1199.11,0.00032054,8]
[425063246,1781447572000,-1329.36,0.00032054,8]
[425063255,1781447572000,-1016.47,0.00032054,8]
[425063258,1781447572000,-500.0,0.00032054,8]
[425063254,1781447572000,-500.0,0.00032054,8]
[425063260,1781447572000,-597.59,0.00032054,8]
[425063259,1781447572000,-856.87,0.00032054,8]
[425063261,1781447572000,-565.44,0.00032054,8]
[425063228,1781447572000,-500.0,0.00032054,8]
[425063249,1781447572000,-550.7692427,0.00032054,8]
[425063245,1781447572000,-638.58249254,0.00032054,8]
[425063256,1781447572000,-1038.13,0.00032054,8]
[425063243,1781447572000,-1530.48,0.00032054,8]
[425063247,1781447572000,-578.24,0.00032054,8]
[425063227,1781447572000,-1236.08,0.00032054,8]
[425063231,1781447572000,-1794.38,0.00032054,8]
[425063233,1781447572000,-500.0,0.00032054,8]
[425063235,1781447572000,-1362.07,0.00032054,8]
[425063232,1781447572000,-752.56,0.00032054,8]
[425063236,1781447572000,-1214.87,0.00032054,8]
[425063234,1781447572000,-500.0,0.00032054,8]
[425063238,1781447572000,-712.15,0.00032054,8]
[425063240,1781447572000,-710.6,0.00032054,8]
[425063242,1781447572000,-932.78,0.00032054,8]
[425063244,1781447572000,-836.13,0.00032054,8]
[425063239,1781447572000,-500.0,0.00032054,8]
[425063237,1781447572000,-658.12,0.00032054,8]
[425063241,1781447572000,-556.38,0.00032054,8]
[425063301,1781447573000,-869.12,0.00032054,8]
[425063300,1781447573000,-500.0,0.00032054,8]
[425063303,1781447573000,-1461.98,0.00032054,8]
[425063302,1781447573000,-992.68,0.00032054,8]
[425063295,1781447573000,-500.0,0.00032054,8]
[425063294,1781447573000,-880.78,0.00032054,8]
[425063296,1781447573000,-616.02,0.00032054,8]
[425063293,1781447573000,-500.0,0.00032054,8]
[425063290,1781447573000,-597.60555653,0.00032054,8]
[425063289,1781447573000,-648.15,0.00032054,8]
[425063297,1781447573000,-500.0,0.00032054,8]
[425063299,1781447573000,-500.0,0.00032054,8]
[425063310,1781447573000,-692.78,0.00032054,8]
[425063305,1781447573000,-500.0,0.00032054,8]
[425063304,1781447573000,-3250.13,0.00032054,8]
[425063306,1781447573000,-1539.52,0.00032054,8]
[425063307,1781447573000,-870.51,0.00032054,8]
[425063312,1781447573000,-540.29,0.00032054,8]
[425063308,1781447573000,-500.0,0.00032054,8]
[425063313,1781447573000,-1661.43,0.00032054,8]
[425063311,1781447573000,-500.0,0.00032054,8]
[425063309,1781447573000,-500.0,0.00032054,8]
[425063314,1781447573000,-743.01,0.00032054,8]
[425063291,1781447573000,-835.21,0.00032054,8]
[425063298,1781447573000,-3014.18,0.00032054,8]
[425063286,1781447573000,-532.23,0.00032054,8]
[425063272,1781447573000,-642.31,0.00032054,8]
[425063287,1781447573000,-657.48,0.00032054,8]
[425063269,1781447573000,-500.0,0.00032054,8]
[425063268,1781447573000,-675.87,0.00032054,8]
[425063264,1781447573000,-657.3,0.00032054,8]
[425063262,1781447573000,-500.0,0.00032054,8]
[425063267,1781447573000,-944.34,0.00032054,8]
[425063265,1781447573000,-1514.46,0.00032054,8]
[425063266,1781447573000,-663.09,0.00032054,8]
[425063263,1781447573000,-1068.73,0.00032054,8]
[425063270,1781447573000,-1042.52,0.00032054,8]
[425063274,1781447573000,-845.18,0.00032054,8]
[425063275,1781447573000,-631.21,0.00032054,8]
[425063277,1781447573000,-729.66,0.00032054,8]
[425063271,1781447573000,-881.04,0.00032054,8]
[425063276,1781447573000,-500.0,0.00032054,8]
[425063281,1781447573000,-596.25382639,0.00032054,8]
[425063280,1781447573000,-500.0,0.00032054,8]
[425063273,1781447573000,-702.19,0.00032054,8]
[425063278,1781447573000,-815.38,0.00032054,8]
[425063279,1781447573000,-500.0,0.00032054,8]
[425063283,1781447573000,-1150.58,0.00032054,8]
[425063282,1781447573000,-500.0,0.00032054,8]
[425063317,1781447573000,-509.71,0.00032054,8]
[425063292,1781447573000,-2000.0,0.00032054,2]
[425063284,1781447573000,-619.32237284,0.00032054,8]
[425063288,1781447573000,-564.84,0.00032054,8]
[425063285,1781447573000,-500.0,0.00032054,8]
[425063325,1781447573000,-674.5,0.00032054,8]
[425063351,1781447573000,-500.0,0.00032054,8]
[425063318,1781447573000,-662.85,0.00032054,8]
[425063348,1781447573000,-431.83884436,0.00032054,8]
[425063352,1781447573000,-1427.79,0.00032054,8]
[425063349,1781447573000,-1675.9,0.00032054,8]
[425063350,1781447573000,-703.84,0.00032054,8]
[425063358,1781447573000,-1056.35,0.00032054,8]
[425063355,1781447573000,-500.0,0.00032054,8]
[425063354,1781447573000,-500.0,0.00032054,8]
[425063356,1781447573000,-877.23,0.00032054,8]
[425063357,1781447573000,-546.64,0.00032054,8]
[425063353,1781447573000,-5751.63,0.00032054,8]
[425063360,1781447573000,-10759.52,0.00032054,8]
[425063345,1781447573000,-500.0,0.00032054,8]
[425063362,1781447573000,-679.83,0.00032054,8]
[425063361,1781447573000,-1143.85,0.00032054,8]
[425063363,1781447573000,-1116.26,0.00032054,8]
[425063367,1781447573000,-704.65,0.00032054,8]
[425063365,1781447573000,-500.0,0.00032054,8]